[Event "Titled Tuesday Blitz May 2 Early 2023"]
[White "Hnydiuk, Aleksander"]
[Black "Nagy, Gabor"]
[WhiteFideId "1109057"]
[BlackFideId "737119"]
[WhiteElo "2374"]
[BlackElo "2514"]
[Result "0-1"]
[Round "02"]
[TimeControl "180+2"]
[Date "2023.05.02"]
[WhiteClock "0:00:01"]
[BlackClock "0:00:25"]

1. g3 {[%clk 0:03:00]}  d5 {[%clk 0:02:59]} 2. Bg2 {[%clk 0:03:00]}  c6 {[%clk 0:02:59]} 3. Nf3 {[%clk 0:02:59]}  Bg4 {[%clk 0:02:59]} 4. O-O {[%clk 0:02:58]}  Nd7 {[%clk 0:02:59]} 5. d3 {[%clk 0:02:58]}  e6 {[%clk 0:03:00]} 6. c4 {[%clk 0:02:58]}  Bd6 {[%clk 0:02:59]} 7. Nc3 {[%clk 0:02:57]}  Ne7 {[%clk 0:02:58]} 8. cxd5 {[%clk 0:02:56]}  exd5 {[%clk 0:02:59]} 9. h3 {[%clk 0:02:51]}  Bxf3 {[%clk 0:02:57]} 10. Bxf3 {[%clk 0:02:52]}  O-O {[%clk 0:02:57]} 11. e4 {[%clk 0:02:48]}  dxe4 {[%clk 0:02:52]} 12. dxe4 {[%clk 0:02:45]}  Qc7 {[%clk 0:02:52]} 13. Be3 {[%clk 0:02:32]}  Bxg3 {[%clk 0:02:36]} 14. fxg3 {[%clk 0:02:12]}  Qxg3+ {[%clk 0:02:37]} 15. Kh1 {[%clk 0:02:12]}  Qxh3+ {[%clk 0:02:38]} 16. Kg1 {[%clk 0:02:12]}  Qg3+ {[%clk 0:02:38]} 17. Kh1 {[%clk 0:02:13]}  Ne5 {[%clk 0:02:38]} 18. Qe2 {[%clk 0:01:56]}  Rad8 {[%clk 0:02:30]} 19. Bg2 {[%clk 0:01:45]}  Ng4 {[%clk 0:02:18]} 20. Bf4 {[%clk 0:01:43]}  Qh4+ {[%clk 0:02:17]} 21. Kg1 {[%clk 0:01:43]}  Ng6 {[%clk 0:02:16]} 22. Qe1 {[%clk 0:01:30]}  Qxe1 {[%clk 0:02:02]} 23. Raxe1 {[%clk 0:01:31]}  Nxf4 {[%clk 0:02:02]} 24. Rxf4 {[%clk 0:01:30]}  Ne5 {[%clk 0:02:03]} 25. Rd1 {[%clk 0:01:11]}  Rxd1+ {[%clk 0:02:01]} 26. Nxd1 {[%clk 0:01:12]}  Rd8 {[%clk 0:02:02]} 27. Ne3 {[%clk 0:01:11]}  f6 {[%clk 0:01:53]} 28. Nf5 {[%clk 0:01:07]}  g6 {[%clk 0:01:47]} 29. Ne3 {[%clk 0:00:55]}  Kg7 {[%clk 0:01:43]} 30. Rf2 {[%clk 0:00:55]}  Rd3 {[%clk 0:01:41]} 31. Re2 {[%clk 0:00:52]}  h5 {[%clk 0:01:40]} 32. Kf2 {[%clk 0:00:47]}  Kf7 {[%clk 0:01:37]} 33. Rc2 {[%clk 0:00:47]}  Ke7 {[%clk 0:01:34]} 34. Ke2 {[%clk 0:00:47]}  h4 {[%clk 0:01:26]} 35. Bh3 {[%clk 0:00:44]}  a5 {[%clk 0:01:20]} 36. Bc8 {[%clk 0:00:43]}  b5 {[%clk 0:01:17]} 37. Ng4 {[%clk 0:00:38]}  Rg3 {[%clk 0:01:07]} 38. Nxe5 {[%clk 0:00:36]}  fxe5 {[%clk 0:01:08]} 39. Kf2 {[%clk 0:00:28]}  Kd6 {[%clk 0:01:04]} 40. Bb7 {[%clk 0:00:27]}  c5 {[%clk 0:01:04]} 41. Rd2+ {[%clk 0:00:23]}  Kc7 {[%clk 0:01:03]} 42. Ba6 {[%clk 0:00:23]}  Kc6 {[%clk 0:00:56]} 43. Rd5 {[%clk 0:00:15]}  Rg5 {[%clk 0:00:55]} 44. Rd8 {[%clk 0:00:13]}  h3 {[%clk 0:00:54]} 45. Rh8 {[%clk 0:00:12]}  Rg2+ {[%clk 0:00:55]} 46. Kf3 {[%clk 0:00:12]}  Rxb2 {[%clk 0:00:56]} 47. Rxh3 {[%clk 0:00:12]}  Rxa2 {[%clk 0:00:56]} 48. Rh6 {[%clk 0:00:12]}  Ra3+ {[%clk 0:00:54]} 49. Kg4 {[%clk 0:00:10]}  c4 {[%clk 0:00:55]} 50. Rxg6+ {[%clk 0:00:10]}  Kc5 {[%clk 0:00:55]} 51. Re6 {[%clk 0:00:10]}  b4 {[%clk 0:00:56]} 52. Rxe5+ {[%clk 0:00:10]}  Kd4 {[%clk 0:00:55]} 53. Rd5+ {[%clk 0:00:10]}  Kc3 {[%clk 0:00:55]} 54. Rc5 {[%clk 0:00:11]}  b3 {[%clk 0:00:47]} 55. Rxc4+ {[%clk 0:00:11]}  Kd2 {[%clk 0:00:48]} 56. Rd4+ {[%clk 0:00:10]}  Ke3 {[%clk 0:00:49]} 57. Rd3+ {[%clk 0:00:10]}  Kxe4 {[%clk 0:00:49]} 58. Rf3 {[%clk 0:00:09]}  a4 {[%clk 0:00:46]} 59. Bc4 {[%clk 0:00:08]}  Kd4 {[%clk 0:00:41]} 60. Be6 {[%clk 0:00:06]}  b2 {[%clk 0:00:33]} 61. Rf4+ {[%clk 0:00:05]}  Kc3 {[%clk 0:00:30]} 62. Bf5 {[%clk 0:00:06]}  Ra1 {[%clk 0:00:29]} 63. Rf3+ {[%clk 0:00:06]}  Kb4 {[%clk 0:00:29]} 64. Rf4+ {[%clk 0:00:06]}  Kc5 {[%clk 0:00:29]} 65. Rf2 {[%clk 0:00:04]}  a3 {[%clk 0:00:29]} 66. Rc2+ {[%clk 0:00:03]}  Kd4 {[%clk 0:00:29]} 67. Rd2+ {[%clk 0:00:03]}  Ke3 {[%clk 0:00:29]} 68. Rd3+ {[%clk 0:00:02]}  Ke2 {[%clk 0:00:30]} 69. Rb3 {[%clk 0:00:02]}  Rg1+ {[%clk 0:00:29]} 70. Kh3 {[%clk 0:00:02]}  Ra1 {[%clk 0:00:28]} 71. Kh2 {[%clk 0:00:02]}  Kd2 {[%clk 0:00:27]} 72. Rb7 {[%clk 0:00:02]}  Rf1 {[%clk 0:00:25]} 73. Rd7+ {[%clk 0:00:01]}  Kc3 {[%clk 0:00:25]} 74. Rc7+ {[%clk 0:00:02]}  Kd4 {[%clk 0:00:25]} 75. Rd7+ {[%clk 0:00:02]}  Ke5 {[%clk 0:00:25]} 76. Bc2 {[%clk 0:00:02]}  a2 {[%clk 0:00:25]} 77. Re7+ {[%clk 0:00:02]}  Kf6 {[%clk 0:00:25]} 78. Rf7+ {[%clk 0:00:01]}  Kxf7 {[%clk 0:00:25]} 0-1


[Site "https://www.chess.com"]

[Event "Titled Tuesday Blitz May 2 Early 2023"]
[White "Ashraf, Artin"]
[Black "Alinasab, Mobina"]
[WhiteFideId "22514805"]
[BlackFideId "12528897"]
[WhiteElo "2188"]
[BlackElo "2149"]
[Result "0-1"]
[Round "02"]
[TimeControl "180+2"]
[Date "2023.05.02"]
[WhiteClock "0:00:00"]
[BlackClock "0:00:01"]

1. e4 {[%clk 0:00:01]}  c5 {[%clk 0:00:01]} 2. Nf3 {[%clk 0:00:01]}  e6 {[%clk 0:00:01]} 3. b3 {[%clk 0:00:01]}  d6 {[%clk 0:00:01]} 4. Bb2 {[%clk 0:00:01]}  a6 {[%clk 0:00:01]} 5. d4 {[%clk 0:00:01]}  cxd4 {[%clk 0:00:01]} 6. Nxd4 {[%clk 0:00:01]}  Nf6 {[%clk 0:00:01]} 7. Nd2 {[%clk 0:00:01]}  Qc7 {[%clk 0:00:01]} 8. c4 {[%clk 0:00:01]}  Be7 {[%clk 0:00:01]} 9. Bd3 {[%clk 0:00:01]}  b6 {[%clk 0:00:01]} 10. O-O {[%clk 0:00:01]}  Bb7 {[%clk 0:00:01]} 11. f4 {[%clk 0:00:01]}  Nbd7 {[%clk 0:00:01]} 12. Qe2 {[%clk 0:00:01]}  O-O {[%clk 0:00:01]} 13. Kh1 {[%clk 0:00:01]}  Rfe8 {[%clk 0:00:01]} 14. N4f3 {[%clk 0:00:01]}  Nc5 {[%clk 0:00:01]} 15. Rae1 {[%clk 0:00:01]}  Nxd3 {[%clk 0:00:01]} 16. Qxd3 {[%clk 0:00:01]}  d5 {[%clk 0:00:01]} 17. cxd5 {[%clk 0:00:00]}  exd5 {[%clk 0:00:01]} 18. e5 {[%clk 0:00:00]}  Ne4 {[%clk 0:00:01]} 19. Rc1 {[%clk 0:00:00]}  Qd8 {[%clk 0:00:01]} 20. Bd4 {[%clk 0:00:00]}  Nc5 {[%clk 0:00:01]} 21. Qe3 {[%clk 0:00:00]}  Bf8 {[%clk 0:00:01]} 0-1


[Site "https://www.chess.com"]

[Event "Titled Tuesday Blitz May 2 Early 2023"]
[White "Risteski, Emil"]
[Black "Albornoz Cabrera, Carlos Daniel"]
[WhiteFideId "15005267"]
[BlackFideId "3518736"]
[WhiteElo "2251"]
[BlackElo "2516"]
[Result "1/2-1/2"]
[Round "02"]
[TimeControl "180+2"]
[Date "2023.05.02"]
[WhiteClock "0:00:00"]
[BlackClock "0:00:00"]

1. c4 {[%clk 0:00:01]}  c6 {[%clk 0:00:01]} 2. e3 {[%clk 0:00:01]}  d5 {[%clk 0:00:01]} 3. Nf3 {[%clk 0:00:01]}  Nf6 {[%clk 0:00:01]} 4. b3 {[%clk 0:00:01]}  Bg4 {[%clk 0:00:01]} 5. Bb2 {[%clk 0:00:01]}  e6 {[%clk 0:00:01]} 6. h3 {[%clk 0:00:01]}  Bh5 {[%clk 0:00:01]} 7. Be2 {[%clk 0:00:01]}  Nbd7 {[%clk 0:00:01]} 8. O-O {[%clk 0:00:01]}  Bd6 {[%clk 0:00:01]} 9. d4 {[%clk 0:00:01]}  O-O {[%clk 0:00:01]} 10. Nbd2 {[%clk 0:00:01]}  Qe7 {[%clk 0:00:01]} 11. Ne5 {[%clk 0:00:01]}  Bxe2 {[%clk 0:00:01]} 12. Qxe2 {[%clk 0:00:01]}  Ne8 {[%clk 0:00:01]} 13. Nxd7 {[%clk 0:00:01]}  Qxd7 {[%clk 0:00:01]} 14. e4 {[%clk 0:00:01]}  Nc7 {[%clk 0:00:01]} 15. Nf3 {[%clk 0:00:01]}  Qe7 {[%clk 0:00:01]} 16. Rad1 {[%clk 0:00:01]}  Ba3 {[%clk 0:00:01]} 17. Ba1 {[%clk 0:00:01]}  a5 {[%clk 0:00:01]} 18. Bc3 {[%clk 0:00:01]}  a4 {[%clk 0:00:01]} 19. exd5 {[%clk 0:00:01]}  exd5 {[%clk 0:00:01]} 20. Qxe7 {[%clk 0:00:01]}  Bxe7 {[%clk 0:00:01]} 21. Rfe1 {[%clk 0:00:01]}  Rfe8 {[%clk 0:00:01]} 22. Ne5 {[%clk 0:00:01]}  f6 {[%clk 0:00:01]} 23. Nd3 {[%clk 0:00:01]}  axb3 {[%clk 0:00:01]} 24. axb3 {[%clk 0:00:01]}  Kf7 {[%clk 0:00:01]} 25. Ra1 {[%clk 0:00:01]}  Bf8 {[%clk 0:00:01]} 26. Kf1 {[%clk 0:00:01]}  Rxe1+ {[%clk 0:00:01]} 27. Kxe1 {[%clk 0:00:01]}  Rxa1+ {[%clk 0:00:01]} 28. Bxa1 {[%clk 0:00:01]}  Bd6 {[%clk 0:00:01]} 29. Ke2 {[%clk 0:00:01]}  g5 {[%clk 0:00:01]} 30. g4 {[%clk 0:00:00]}  Kg6 {[%clk 0:00:01]} 31. Bc3 {[%clk 0:00:00]}  dxc4 {[%clk 0:00:01]} 32. bxc4 {[%clk 0:00:00]}  b5 {[%clk 0:00:01]} 33. Bb4 {[%clk 0:00:00]}  bxc4 {[%clk 0:00:01]} 34. Bxd6 {[%clk 0:00:00]}  cxd3+ {[%clk 0:00:01]} 35. Kxd3 {[%clk 0:00:00]}  Ne6 {[%clk 0:00:01]} 36. Kc4 {[%clk 0:00:00]}  f5 {[%clk 0:00:01]} 37. f3 {[%clk 0:00:00]}  h5 {[%clk 0:00:01]} 38. Be5 {[%clk 0:00:00]}  h4 {[%clk 0:00:00]} 39. Bd6 {[%clk 0:00:00]}  fxg4 {[%clk 0:00:00]} 40. fxg4 {[%clk 0:00:00]}  Kf6 {[%clk 0:00:00]} 41. Be5+ {[%clk 0:00:00]}  Ke7 {[%clk 0:00:00]} 42. d5 {[%clk 0:00:00]}  cxd5+ {[%clk 0:00:00]} 43. Kxd5 {[%clk 0:00:00]}  Kf7 {[%clk 0:00:00]} 44. Ke4 {[%clk 0:00:00]}  Kg6 {[%clk 0:00:00]} 45. Bd6 {[%clk 0:00:00]}  Nd8 {[%clk 0:00:00]} 46. Be7 {[%clk 0:00:00]}  Ne6 {[%clk 0:00:00]} 47. Bd6 {[%clk 0:00:00]}  Ng7 {[%clk 0:00:00]} 48. Be7 {[%clk 0:00:00]}  Ne6 {[%clk 0:00:00]} 49. Bd6 {[%clk 0:00:00]} 1/2-1/2


[Site "https://www.chess.com"]

[Event "Titled Tuesday Blitz May 2 Early 2023"]
[White "Seo, Jung Min"]
[Black "Baches Garcia, Guillermo"]
[WhiteFideId "1734687"]
[BlackFideId "2209764"]
[WhiteElo "2468"]
[BlackElo "2334"]
[Result "1-0"]
[Round "02"]
[TimeControl "180+2"]
[Date "2023.05.02"]
[WhiteClock "0:00:00"]
[BlackClock "0:00:00"]

1. d4 {[%clk 0:00:01]}  Nf6 {[%clk 0:00:01]} 2. c4 {[%clk 0:00:01]}  e6 {[%clk 0:00:01]} 3. Nc3 {[%clk 0:00:01]}  d5 {[%clk 0:00:01]} 4. cxd5 {[%clk 0:00:01]}  Nxd5 {[%clk 0:00:01]} 5. e4 {[%clk 0:00:01]}  Nxc3 {[%clk 0:00:01]} 6. bxc3 {[%clk 0:00:01]}  c5 {[%clk 0:00:01]} 7. a3 {[%clk 0:00:01]}  cxd4 {[%clk 0:00:01]} 8. cxd4 {[%clk 0:00:01]}  e5 {[%clk 0:00:01]} 9. d5 {[%clk 0:00:01]}  Bd6 {[%clk 0:00:01]} 10. Nf3 {[%clk 0:00:01]}  O-O {[%clk 0:00:01]} 11. Bd3 {[%clk 0:00:01]}  Nd7 {[%clk 0:00:01]} 12. O-O {[%clk 0:00:01]}  Nc5 {[%clk 0:00:01]} 13. Bc2 {[%clk 0:00:01]}  Bd7 {[%clk 0:00:01]} 14. Re1 {[%clk 0:00:01]}  b5 {[%clk 0:00:01]} 15. Be3 {[%clk 0:00:01]}  Qe7 {[%clk 0:00:01]} 16. Nd2 {[%clk 0:00:01]}  a5 {[%clk 0:00:01]} 17. Qe2 {[%clk 0:00:01]}  Rfc8 {[%clk 0:00:01]} 18. Reb1 {[%clk 0:00:01]}  Rab8 {[%clk 0:00:01]} 19. h3 {[%clk 0:00:01]}  h6 {[%clk 0:00:01]} 20. Kh2 {[%clk 0:00:01]}  a4 {[%clk 0:00:01]} 21. Kg1 {[%clk 0:00:01]}  Kf8 {[%clk 0:00:01]} 22. Ra2 {[%clk 0:00:01]}  Kg8 {[%clk 0:00:01]} 23. Qf1 {[%clk 0:00:01]}  Na6 {[%clk 0:00:00]} 24. Bd3 {[%clk 0:00:01]}  Bxa3 {[%clk 0:00:00]} 25. Raa1 {[%clk 0:00:01]}  Bc5 {[%clk 0:00:00]} 26. Bxb5 {[%clk 0:00:01]}  Bxb5 {[%clk 0:00:00]} 27. Rxb5 {[%clk 0:00:01]}  Bxe3 {[%clk 0:00:00]} 28. fxe3 {[%clk 0:00:01]}  a3 {[%clk 0:00:00]} 29. Rxb8 {[%clk 0:00:01]}  Nxb8 {[%clk 0:00:00]} 30. Qd3 {[%clk 0:00:01]}  Nd7 {[%clk 0:00:00]} 31. Qxa3 {[%clk 0:00:01]}  Qg5 {[%clk 0:00:00]} 32. Nf3 {[%clk 0:00:01]}  Qg6 {[%clk 0:00:00]} 33. Qe7 {[%clk 0:00:00]}  Rc2 {[%clk 0:00:00]} 34. Ne1 {[%clk 0:00:00]}  Re2 {[%clk 0:00:00]} 35. Qxd7 {[%clk 0:00:00]}  Qxe4 {[%clk 0:00:00]} 36. Nf3 {[%clk 0:00:00]}  Qxe3+ {[%clk 0:00:00]} 37. Kh1 {[%clk 0:00:00]}  g6 {[%clk 0:00:00]} 38. Qg4 {[%clk 0:00:00]}  Kg7 {[%clk 0:00:00]} 39. d6 {[%clk 0:00:00]}  e4 {[%clk 0:00:00]} 40. Ne5 {[%clk 0:00:00]} 1-0


[Site "https://www.chess.com"]

[Event "Titled Tuesday Blitz May 2 Early 2023"]
[White "Lavrik, Dmitry"]
[Black "Bochnicka, Vladimir"]
[WhiteFideId "24113190"]
[BlackFideId "14943450"]
[WhiteElo "2345"]
[BlackElo "2094"]
[Result "1-0"]
[Round "02"]
[TimeControl "180+2"]
[Date "2023.05.02"]
[WhiteClock "0:00:51"]
[BlackClock "0:00:04"]

1. c4 {[%clk 0:03:00]}  Nf6 {[%clk 0:02:56]} 2. g3 {[%clk 0:02:59]}  g6 {[%clk 0:02:55]} 3. Bg2 {[%clk 0:02:59]}  Bg7 {[%clk 0:02:55]} 4. Nc3 {[%clk 0:02:59]}  d6 {[%clk 0:02:56]} 5. Nf3 {[%clk 0:02:58]}  O-O {[%clk 0:02:57]} 6. O-O {[%clk 0:02:58]}  Nc6 {[%clk 0:02:54]} 7. Rb1 {[%clk 0:02:57]}  a6 {[%clk 0:02:47]} 8. b4 {[%clk 0:02:55]}  Bf5 {[%clk 0:02:11]} 9. d3 {[%clk 0:02:54]}  Qd7 {[%clk 0:02:11]} 10. Re1 {[%clk 0:02:49]}  Ng4 {[%clk 0:01:47]} 11. Bd2 {[%clk 0:02:35]}  Rab8 {[%clk 0:01:44]} 12. e4 {[%clk 0:02:17]}  Be6 {[%clk 0:01:42]} 13. Ng5 {[%clk 0:02:17]}  Nce5 {[%clk 0:00:58]} 14. d4 {[%clk 0:02:03]}  Nd3 {[%clk 0:00:33]} 15. d5 {[%clk 0:01:54]}  Ngxf2 {[%clk 0:00:33]} 16. Qc2 {[%clk 0:01:29]}  Bd4 {[%clk 0:00:20]} 17. Be3 {[%clk 0:01:24]}  Nxe1 {[%clk 0:00:19]} 18. Rxe1 {[%clk 0:01:13]}  Bxe3 {[%clk 0:00:16]} 19. Rxe3 {[%clk 0:01:13]}  Ng4 {[%clk 0:00:14]} 20. Re1 {[%clk 0:01:12]}  b5 {[%clk 0:00:05]} 21. Qe2 {[%clk 0:01:01]}  Ne5 {[%clk 0:00:04]} 22. dxe6 {[%clk 0:01:01]}  fxe6 {[%clk 0:00:05]} 23. Bh3 {[%clk 0:01:02]}  Rf6 {[%clk 0:00:03]} 24. Nd5 {[%clk 0:01:00]}  Qe8 {[%clk 0:00:01]} 25. Nxf6+ {[%clk 0:00:51]}  exf6 {[%clk 0:00:02]} 26. Nxe6 {[%clk 0:00:52]}  Nxc4 {[%clk 0:00:02]} 27. Nxc7 {[%clk 0:00:51]}  Qe7 {[%clk 0:00:02]} 28. Nd5 {[%clk 0:00:51]}  Qf7 {[%clk 0:00:02]} 29. Rf1 {[%clk 0:00:50]}  Re8 {[%clk 0:00:03]} 30. Nxf6+ {[%clk 0:00:50]}  Kg7 {[%clk 0:00:03]} 31. Nxe8+ {[%clk 0:00:50]}  Qxe8 {[%clk 0:00:04]} 32. Qf2 {[%clk 0:00:51]}  Qe5 {[%clk 0:00:04]} 33. Qf8# {[%clk 0:00:51]} 1-0


[Site "https://www.chess.com"]

[Event "Titled Tuesday Blitz May 2 Early 2023"]
[White "Marcziter, Dmitrii"]
[Black "Sammed Jaykumar, Shete"]
[WhiteFideId "13900765"]
[BlackFideId "5073421"]
[WhiteElo "2162"]
[BlackElo "2278"]
[Result "0-1"]
[Round "02"]
[TimeControl "180+2"]
[Date "2023.05.02"]
[WhiteClock "0:01:24"]
[BlackClock "0:00:30"]

1. e4 {[%clk 0:03:00]}  c5 {[%clk 0:02:59]} 2. Nc3 {[%clk 0:02:58]}  Nc6 {[%clk 0:02:56]} 3. f4 {[%clk 0:02:58]}  g6 {[%clk 0:02:57]} 4. Nf3 {[%clk 0:02:58]}  Bg7 {[%clk 0:02:57]} 5. Bc4 {[%clk 0:02:58]}  e6 {[%clk 0:02:58]} 6. d3 {[%clk 0:02:58]}  Nge7 {[%clk 0:02:58]} 7. O-O {[%clk 0:02:58]}  d5 {[%clk 0:02:57]} 8. Bb3 {[%clk 0:02:57]}  O-O {[%clk 0:02:57]} 9. Kh1 {[%clk 0:02:55]}  Nd4 {[%clk 0:02:51]} 10. Nxd4 {[%clk 0:02:54]}  cxd4 {[%clk 0:02:52]} 11. Ne2 {[%clk 0:02:54]}  dxe4 {[%clk 0:02:43]} 12. dxe4 {[%clk 0:02:53]}  Nc6 {[%clk 0:02:44]} 13. Ng3 {[%clk 0:02:49]}  Na5 {[%clk 0:02:10]} 14. Bc4 {[%clk 0:02:44]}  Nxc4 {[%clk 0:02:09]} 15. f5 {[%clk 0:02:40]}  exf5 {[%clk 0:02:04]} 16. exf5 {[%clk 0:02:40]}  Ne3 {[%clk 0:02:05]} 17. Bxe3 {[%clk 0:02:38]}  dxe3 {[%clk 0:02:06]} 18. Qf3 {[%clk 0:02:38]}  Bxf5 {[%clk 0:01:48]} 19. Nxf5 {[%clk 0:02:37]}  gxf5 {[%clk 0:01:49]} 20. Qxe3 {[%clk 0:02:34]}  Re8 {[%clk 0:01:45]} 21. Qf3 {[%clk 0:02:33]}  Re5 {[%clk 0:01:37]} 22. Qxb7 {[%clk 0:02:31]}  Qc8 {[%clk 0:01:27]} 23. Qb3 {[%clk 0:02:27]}  Rb8 {[%clk 0:01:27]} 24. Qa4 {[%clk 0:02:20]}  Rxb2 {[%clk 0:01:23]} 25. Rad1 {[%clk 0:02:15]}  Bf6 {[%clk 0:01:17]} 26. Rd3 {[%clk 0:02:10]}  Re4 {[%clk 0:01:01]} 27. Qxa7 {[%clk 0:02:07]}  Qxc2 {[%clk 0:00:52]} 28. Rg3+ {[%clk 0:02:06]}  Rg4 {[%clk 0:00:53]} 29. Qa8+ {[%clk 0:02:03]}  Kg7 {[%clk 0:00:52]} 30. Qf3 {[%clk 0:01:52]}  Rg6 {[%clk 0:00:28]} 31. a4 {[%clk 0:01:46]}  Rb1 {[%clk 0:00:26]} 32. Rxg6+ {[%clk 0:01:44]}  hxg6 {[%clk 0:00:26]} 33. h3 {[%clk 0:01:31]}  Rxf1+ {[%clk 0:00:24]} 34. Qxf1 {[%clk 0:01:31]}  Qxa4 {[%clk 0:00:25]} 35. Qf3 {[%clk 0:01:31]}  Qa1+ {[%clk 0:00:24]} 36. Kh2 {[%clk 0:01:30]}  Be5+ {[%clk 0:00:25]} 37. g3 {[%clk 0:01:30]}  Qb2+ {[%clk 0:00:25]} 38. Kg1 {[%clk 0:01:31]}  Qc3 {[%clk 0:00:26]} 39. Qxc3 {[%clk 0:01:28]}  Bxc3 {[%clk 0:00:27]} 40. Kf2 {[%clk 0:01:28]}  Kf6 {[%clk 0:00:27]} 41. Kf3 {[%clk 0:01:29]}  Ke5 {[%clk 0:00:28]} 42. g4 {[%clk 0:01:28]}  fxg4+ {[%clk 0:00:28]} 43. hxg4 {[%clk 0:01:28]}  g5 {[%clk 0:00:28]} 44. Ke3 {[%clk 0:01:27]}  Ba5 {[%clk 0:00:27]} 45. Kf3 {[%clk 0:01:27]}  Kd4 {[%clk 0:00:28]} 46. Kg3 {[%clk 0:01:24]}  Ke4 {[%clk 0:00:28]} 47. Kg2 {[%clk 0:01:24]}  Kf4 {[%clk 0:00:29]} 48. Kh3 {[%clk 0:01:24]}  Kf3 {[%clk 0:00:30]} 0-1


[Site "https://www.chess.com"]

[Event "Titled Tuesday Blitz May 2 Early 2023"]
[White "Petrova, Irina"]
[Black "Martinez Ramirez, Lennis"]
[WhiteFideId "14124122"]
[BlackFideId "3509079"]
[WhiteElo "2084"]
[BlackElo "2410"]
[Result "1/2-1/2"]
[Round "02"]
[TimeControl "180+2"]
[Date "2023.05.02"]
[WhiteClock "0:00:16"]
[BlackClock "0:00:01"]

1. e4 {[%clk 0:03:00]}  c5 {[%clk 0:02:53]} 2. Nf3 {[%clk 0:03:00]}  Nc6 {[%clk 0:02:53]} 3. Bb5 {[%clk 0:03:00]}  g6 {[%clk 0:02:52]} 4. Bxc6 {[%clk 0:02:59]}  dxc6 {[%clk 0:02:53]} 5. d3 {[%clk 0:02:58]}  Bg7 {[%clk 0:02:53]} 6. Nc3 {[%clk 0:02:57]}  e5 {[%clk 0:02:53]} 7. Be3 {[%clk 0:02:57]}  b6 {[%clk 0:02:52]} 8. h3 {[%clk 0:02:55]}  Qc7 {[%clk 0:02:47]} 9. O-O {[%clk 0:02:54]}  Nf6 {[%clk 0:02:45]} 10. a3 {[%clk 0:02:54]}  O-O {[%clk 0:02:17]} 11. Nh2 {[%clk 0:02:34]}  Nh5 {[%clk 0:02:14]} 12. b4 {[%clk 0:02:19]}  cxb4 {[%clk 0:02:13]} 13. axb4 {[%clk 0:02:20]}  Nf4 {[%clk 0:02:11]} 14. Ra3 {[%clk 0:02:03]}  Ne6 {[%clk 0:01:46]} 15. Qa1 {[%clk 0:01:58]}  Nd4 {[%clk 0:01:45]} 16. Bxd4 {[%clk 0:01:50]}  exd4 {[%clk 0:01:45]} 17. Ne2 {[%clk 0:01:50]}  c5 {[%clk 0:01:34]} 18. bxc5 {[%clk 0:01:46]}  Qxc5 {[%clk 0:01:29]} 19. Nf3 {[%clk 0:01:38]}  Rd8 {[%clk 0:01:19]} 20. Rxa7 {[%clk 0:01:27]}  Rxa7 {[%clk 0:01:18]} 21. Qxa7 {[%clk 0:01:26]}  Bf6 {[%clk 0:01:11]} 22. Nf4 {[%clk 0:01:18]}  Be6 {[%clk 0:00:58]} 23. Nxe6 {[%clk 0:01:03]}  fxe6 {[%clk 0:00:59]} 24. Rb1 {[%clk 0:00:54]}  Qxc2 {[%clk 0:00:49]} 25. Qxb6 {[%clk 0:00:52]}  Re8 {[%clk 0:00:38]} 26. e5 {[%clk 0:00:51]}  Bd8 {[%clk 0:00:30]} 27. Qb3 {[%clk 0:00:46]}  Qe2 {[%clk 0:00:20]} 28. Nxd4 {[%clk 0:00:42]}  Qxe5 {[%clk 0:00:20]} 29. Nf3 {[%clk 0:00:41]}  Qd6 {[%clk 0:00:19]} 30. d4 {[%clk 0:00:39]}  Bc7 {[%clk 0:00:19]} 31. Qc4 {[%clk 0:00:34]}  Rf8 {[%clk 0:00:16]} 32. Ne5 {[%clk 0:00:34]}  Bd8 {[%clk 0:00:04]} 33. Rb7 {[%clk 0:00:29]}  Bh4 {[%clk 0:00:04]} 34. g3 {[%clk 0:00:24]}  Bf6 {[%clk 0:00:04]} 35. Qc7 {[%clk 0:00:21]}  Qxc7 {[%clk 0:00:01]} 36. Rxc7 {[%clk 0:00:22]}  Bxe5 {[%clk 0:00:02]} 37. dxe5 {[%clk 0:00:21]}  Rf5 {[%clk 0:00:03]} 38. f4 {[%clk 0:00:20]}  g5 {[%clk 0:00:03]} 39. Rc4 {[%clk 0:00:19]}  gxf4 {[%clk 0:00:03]} 40. gxf4 {[%clk 0:00:18]}  Kf7 {[%clk 0:00:03]} 41. Kg2 {[%clk 0:00:17]}  Kg6 {[%clk 0:00:02]} 42. Kg3 {[%clk 0:00:16]}  Rf8 {[%clk 0:00:01]} 1/2-1/2


[Site "https://www.chess.com"]

[Event "Titled Tuesday Blitz May 2 Early 2023"]
[White "Aaditya Dhingra"]
[Black "Khromkin, Andrey"]
[WhiteFideId "25678191"]
[BlackFideId "4154126"]
[WhiteElo "2083"]
[BlackElo "2191"]
[Result "1/2-1/2"]
[Round "02"]
[TimeControl "180+2"]
[Date "2023.05.02"]
[WhiteClock "0:00:32"]
[BlackClock "0:01:08"]

1. Nf3 {[%clk 0:03:00]}  c5 {[%clk 0:02:59]} 2. c4 {[%clk 0:02:59]}  Nc6 {[%clk 0:03:00]} 3. g3 {[%clk 0:02:59]}  g6 {[%clk 0:03:00]} 4. Bg2 {[%clk 0:02:59]}  Bg7 {[%clk 0:03:01]} 5. O-O {[%clk 0:02:59]}  a6 {[%clk 0:03:01]} 6. Nc3 {[%clk 0:02:58]}  Rb8 {[%clk 0:03:02]} 7. d3 {[%clk 0:02:53]}  b5 {[%clk 0:03:01]} 8. Be3 {[%clk 0:02:49]}  d6 {[%clk 0:03:00]} 9. cxb5 {[%clk 0:02:43]}  axb5 {[%clk 0:02:59]} 10. d4 {[%clk 0:02:44]}  b4 {[%clk 0:02:36]} 11. Ne4 {[%clk 0:02:38]}  cxd4 {[%clk 0:02:33]} 12. Nxd4 {[%clk 0:02:37]}  Ne5 {[%clk 0:02:33]} 13. Bf4 {[%clk 0:02:03]}  Bd7 {[%clk 0:02:16]} 14. Rc1 {[%clk 0:01:44]}  Nf6 {[%clk 0:02:12]} 15. Bxe5 {[%clk 0:01:39]}  dxe5 {[%clk 0:02:08]} 16. Nc6 {[%clk 0:01:12]}  Bxc6 {[%clk 0:02:08]} 17. Nxf6+ {[%clk 0:01:12]}  Bxf6 {[%clk 0:02:07]} 18. Bxc6+ {[%clk 0:01:13]}  Kf8 {[%clk 0:02:06]} 19. Qb3 {[%clk 0:01:13]}  Kg7 {[%clk 0:02:03]} 20. Rfd1 {[%clk 0:01:11]}  Qb6 {[%clk 0:02:02]} 21. Bd5 {[%clk 0:00:59]}  e6 {[%clk 0:01:48]} 22. Bf3 {[%clk 0:00:54]}  Rhd8 {[%clk 0:01:47]} 23. Rc6 {[%clk 0:00:53]}  Rxd1+ {[%clk 0:01:42]} 24. Qxd1 {[%clk 0:00:54]}  Qd4 {[%clk 0:01:43]} 25. Qc2 {[%clk 0:00:52]}  Rd8 {[%clk 0:01:30]} 26. Kg2 {[%clk 0:00:49]}  e4 {[%clk 0:01:26]} 27. Bxe4 {[%clk 0:00:46]}  Qxb2 {[%clk 0:01:26]} 28. Qc4 {[%clk 0:00:41]}  Rd4 {[%clk 0:01:20]} 29. Qc2 {[%clk 0:00:41]}  Rd2 {[%clk 0:01:18]} 30. Qxb2 {[%clk 0:00:35]}  Rxb2 {[%clk 0:01:18]} 31. Rc2 {[%clk 0:00:33]}  Rxc2 {[%clk 0:01:16]} 32. Bxc2 {[%clk 0:00:33]}  Be7 {[%clk 0:01:08]} 33. Kf3 {[%clk 0:00:32]} 1/2-1/2


[Site "https://www.chess.com"]